fUST/lending_fUST_20251104
["ID","MTS","AMOUNT","RATE_DAILY","PERIOD"]
[393034933,1762236648621,-500.0,0.00044109,120]
[393034934,1762236648630,-500.0,0.00044109,120]
[393034935,1762236648639,-500.0,0.00044109,120]
[393034936,1762236648648,-500.0,0.00044109,120]
[393034937,1762236648657,-500.0,0.00044109,120]
[393034938,1762236648666,-2020.09,0.00044109,120]
[393034939,1762236648676,-500.0,0.00044109,120]
[393034940,1762236648685,-500.0,0.00044109,120]
[393034941,1762236648694,-500.0,0.00044109,120]
[393034942,1762236648703,-350.7133754,0.00044109,120]
[393034943,1762236648713,-500.0,0.00044109,120]
[393034944,1762236648722,-500.0,0.00044109,120]
[393034945,1762236648734,-500.0,0.00044109,120]
[393034946,1762236648743,-500.0,0.00044109,120]
[393034947,1762236648752,-500.0,0.00044109,120]
[393034948,1762236648761,-500.0,0.00044109,120]
[393034949,1762236648771,-500.0,0.00044109,120]
[393034950,1762236648780,-533.25348,0.00044109,120]
[393034951,1762236648793,-500.0,0.00044109,120]
[393034952,1762236648802,-500.0,0.00044109,120]
[393034953,1762236648812,-500.0,0.00044109,120]
[393034954,1762236648822,-500.0,0.00044109,120]
[393034955,1762236648832,-500.0,0.00044109,120]
[393034956,1762236648842,-500.0,0.00044109,120]
[393034957,1762236648851,-500.0,0.00044109,120]
[393034958,1762236648861,-500.0,0.00044109,120]
[393034959,1762236648870,-500.0,0.00044109,120]
[393034960,1762236648879,-500.0,0.00044109,120]
[393034961,1762236648888,-500.0,0.00044109,120]
[393034962,1762236648897,-500.0,0.00044109,120]
[393034963,1762236648907,-500.0,0.00044109,120]
[393034964,1762236648916,-500.0,0.00044109,120]
[393034965,1762236648925,-500.0,0.00044109,120]
[393034966,1762236648934,-500.0,0.00044109,120]
[393034967,1762236648944,-500.0,0.00044109,120]
[393034968,1762236648953,-500.0,0.00044109,120]
[393034969,1762236648962,-500.0,0.00044109,120]
[393034970,1762236648971,-500.0,0.00044109,120]
[393034971,1762236648981,-500.0,0.00044109,120]
[393034972,1762236648990,-500.0,0.00044109,120]
[393034973,1762236648999,-500.0,0.00044109,120]
[393034974,1762236649009,-500.0,0.00044109,120]
[393034975,1762236649019,-500.0,0.00044109,120]
[393034976,1762236649028,-500.0,0.00044109,2]
[393034977,1762236649040,-500.0,0.00044109,120]
[393034978,1762236649049,-1518.66,0.00044109,120]
[393034979,1762236649059,-500.0,0.00044109,2]
[393034980,1762236649067,-500.0,0.00044109,120]
[393034981,1762236649076,-468.62970661,0.00044109,2]
[393034982,1762236649085,-500.0,0.00044109,120]
[393034983,1762236649094,-500.0,0.00044109,120]
[393034984,1762236649104,-500.0,0.00044109,120]
[393034985,1762236649113,-500.0,0.00044109,120]
[393034986,1762236649122,-500.0,0.00044109,120]
[393034987,1762236649131,-500.0,0.00044109,120]
[393034988,1762236649146,-500.0,0.00044109,120]
[393034989,1762236649156,-500.0,0.00044109,2]
[393034990,1762236649165,-297.65459662,0.00044109,120]
[393034991,1762236649175,-500.0,0.00044109,120]
[393034992,1762236649183,-500.0,0.00044109,120]
[393034993,1762236649193,-500.0,0.00044109,120]
[393034994,1762236649202,-500.0,0.00044109,120]
[393034995,1762236649211,-500.0,0.00044109,120]
[393034996,1762236649221,-500.0,0.00044109,120]
[393034997,1762236649230,-1900.0,0.0004411,60]
[393034998,1762236649239,-10125.6658183,0.00044119,2]
[393034999,1762236649248,-754.72,0.00044187,120]
[393035000,1762236649258,-754.72,0.00044287,120]
[393035001,1762236649267,-502.98814734,0.00044383,120]
[393035002,1762236649276,-500.0,0.00044383,120]
[393035003,1762236649288,-501.03399172,0.00044383,120]
[393035004,1762236649300,-510.27735353,0.00044383,120]
[393035005,1762236649310,-500.0,0.00044383,120]
[393035006,1762236649319,-1000.0,0.00044383,2]
[393035007,1762236649328,-500.0,0.00044383,120]
[393035008,1762236649337,-500.0,0.00044383,120]
[393035009,1762236649348,-500.0,0.00044383,120]
[393035010,1762236649357,-629.63643832,0.00044383,120]
[393035011,1762236649367,-500.0,0.00044383,30]
[393035012,1762236649378,-500.0,0.00044383,120]
[393035013,1762236649387,-500.0,0.00044383,120]
[393035014,1762236649396,-500.0,0.00044383,120]
[393035015,1762236649405,-500.0,0.00044383,120]
[393035016,1762236649415,-500.0,0.00044383,120]
[393035017,1762236649424,-500.0,0.00044383,120]
[393035018,1762236649434,-505.35783976,0.00044383,120]
[393035019,1762236649443,-545.54216573,0.00044383,120]
[393035020,1762236649452,-507.61582988,0.00044383,120]
[393035021,1762236649461,-500.0,0.00044383,120]
[393035022,1762236649471,-503.90193676,0.00044383,120]
[393035023,1762236649481,-500.0,0.00044383,120]
[393035024,1762236649491,-337.38788316,0.00044383,120]
[393035025,1762236649501,-505.5263745,0.00044383,120]
[393035026,1762236649510,-500.0,0.00044383,120]
[393035027,1762236649520,-472.23385666,0.00044383,120]
[393035028,1762236649530,-503.63529882,0.00044383,120]
[393035029,1762236649542,-500.0,0.00044383,120]
[393035030,1762236649552,-170.23488745,0.00044383,120]
[393035031,1762236649562,-500.0,0.00044383,120]
[393035032,1762236649572,-290.9610155,0.00044383,120]
[393035033,1762236649581,-503.88409925,0.00044383,120]
[393035034,1762236649650,-500.0,0.00044383,120]
[393035035,1762236649660,-504.33244633,0.00044383,120]
[393035036,1762236649669,-503.15481316,0.00044383,120]
[393035037,1762236649679,-500.0,0.00044383,120]
[393035038,1762236649688,-500.0,0.00044383,120]
[393035039,1762236649697,-505.265791,0.00044383,120]
[393035040,1762236649706,-508.88799206,0.00044383,120]
[393035041,1762236649719,-505.79087946,0.00044383,120]
[393035042,1762236649729,-505.75713427,0.00044383,120]
[393035043,1762236649738,-509.876435,0.00044383,120]
[393035044,1762236649747,-500.0,0.00044383,2]
[393035045,1762236649756,-530.35590114,0.00044383,120]
[393035046,1762236649766,-505.22847352,0.00044383,120]
[393035047,1762236649775,-504.07186129,0.00044383,120]
[393035048,1762236649788,-433.25151841,0.00044383,120]
[393035049,1762236649798,-509.32544099,0.00044383,120]
[393035050,1762236649807,-509.65110766,0.00044383,120]
[393035051,1762236649816,-500.0,0.00044383,120]
[393035052,1762236649826,-500.0,0.00044383,120]
[393035053,1762236649835,-500.0,0.00044383,120]
[393035054,1762236649844,-524.78496009,0.00044383,120]
[393035055,1762236649854,-500.0,0.00044383,120]
[393035056,1762236649863,-500.0,0.00044383,120]
[393035057,1762236649872,-1000.0,0.00044383,2]
[393035058,1762236649882,-503.42244356,0.00044383,120]
[393035059,1762236649891,-215.58308244,0.00044383,120]
[393035060,1762236649900,-502.70731968,0.00044383,120]
[393035061,1762236649910,-503.87529382,0.00044383,120]
[393035062,1762236649919,-253.906393,0.00044383,120]
[393035063,1762236650039,-246.093607,0.00044383,120]
[393035064,1762236650049,-505.65806493,0.00044383,120]
[393035065,1762236650058,-500.0,0.00044383,120]
[393035066,1762236650068,-500.0,0.00044383,120]
[393035067,1762236650077,-507.44480705,0.00044383,120]
[393035068,1762236650086,-500.0,0.00044383,120]
[393035069,1762236650099,-500.0,0.00044383,120]
[393035070,1762236650110,-500.0,0.00044383,120]
[393035071,1762236650119,-439.836789,0.00044383,120]
[393035072,1762236650129,-505.29211743,0.00044383,120]
[393035073,1762236650138,-500.0,0.00044383,120]
[393035074,1762236650147,-503.08586406,0.00044383,120]
[393035075,1762236650157,-500.0,0.00044383,120]
[393035076,1762236650166,-500.0,0.00044383,120]
[393035077,1762236650175,-503.23779928,0.00044383,120]
[393035078,1762236650184,-500.0,0.00044383,120]
[393035079,1762236650193,-512.69215187,0.00044383,120]
[393035080,1762236650202,-500.0,0.00044383,120]
[393035081,1762236650211,-500.0,0.00044383,120]
[393035082,1762236650220,-505.32918991,0.00044383,120]
[393035083,1762236650229,-503.75212349,0.00044383,120]
[393035084,1762236650239,-500.0,0.00044383,120]
[393035085,1762236650248,-187.25590308,0.00044383,120]
[393035086,1762236650256,-500.0,0.00044383,120]
[393035087,1762236650265,-500.0,0.00044383,120]
[393035088,1762236650275,-480.62374316,0.00044383,120]
[393035089,1762236650287,-500.0,0.00044383,120]
[393035090,1762236650298,-500.0,0.00044383,120]
[393035091,1762236650308,-503.45539914,0.00044383,120]
[393035092,1762236650318,-500.0,0.00044383,120]
[393035093,1762236650328,-500.0,0.00044383,120]
[393035094,1762236650338,-500.0,0.00044383,120]
[393035095,1762236650347,-504.82288357,0.00044383,120]
[393035096,1762236650357,-500.0,0.00044383,120]
[393035097,1762236650366,-500.0,0.00044383,120]
[393035098,1762236650377,-500.0,0.00044383,120]
[393035099,1762236650387,-2588.11,0.00044383,120]
[393035100,1762236650396,-183.50510547,0.00044383,30]
[393035101,1762236650405,-500.0,0.00044383,120]
[393035102,1762236650415,-514.16649894,0.00044383,120]
[393035103,1762236650424,-505.09563291,0.00044383,120]
[393035104,1762236650433,-500.0,0.00044383,120]
[393035105,1762236650442,-500.0,0.00044383,120]
[393035106,1762236650451,-500.0,0.00044383,120]
[393035107,1762236650460,-606.5136867,0.00044383,120]
[393035108,1762236650469,-500.0,0.00044383,120]
[393035109,1762236650478,-503.56701293,0.00044383,20]
[393035110,1762236650487,-500.0,0.00044383,120]
[393035111,1762236650496,-500.0,0.00044383,120]
[393035112,1762236650506,-502.90369806,0.00044383,120]
[393035113,1762236650515,-500.0,0.00044383,120]
[393035114,1762236650524,-505.30630793,0.00044383,120]
[393035115,1762236650536,-500.0,0.00044383,120]
[393035116,1762236650546,-500.0,0.00044383,120]
[393035117,1762236650555,-500.0,0.00044383,120]
[393035118,1762236650564,-505.93878116,0.00044383,120]
[393035119,1762236650573,-503.40462542,0.00044383,120]
[393035120,1762236650582,-500.0,0.00044383,120]
[393035121,1762236650591,-500.0,0.00044383,120]
[393035122,1762236650600,-500.00016017,0.00044383,120]
[393035123,1762236650609,-503.69701078,0.00044383,120]
[393035124,1762236650619,-500.0,0.00044383,120]
[393035125,1762236650628,-500.0,0.00044383,120]
[393035126,1762236650638,-500.0,0.00044383,120]
[393035127,1762236650648,-500.0,0.00044383,120]
[393035128,1762236650657,-500.0,0.00044383,120]
[393035129,1762236650666,-500.0,0.00044383,120]
[393035130,1762236650675,-500.0,0.00044383,120]
[393035131,1762236650684,-500.0,0.00044383,120]
[393035132,1762236650694,-500.0,0.00044383,120]
[393035133,1762236650703,-500.0,0.00044383,120]
[393035134,1762236650774,-500.0,0.00044383,120]
[393035135,1762236650787,-500.0,0.00044383,120]
[393035136,1762236650799,-500.0,0.00044383,2]
[393035137,1762236650809,-500.0,0.00044383,120]
[393035138,1762236650818,-493.76096175,0.00044383,120]
[393035139,1762236650827,-504.90940211,0.00044383,120]
[393035140,1762236650836,-508.59674966,0.00044383,120]
[393035141,1762236650845,-500.0,0.00044383,120]
[393035142,1762236650854,-500.0,0.00044383,120]
[393035143,1762236650863,-500.0,0.00044383,120]
[393035144,1762236650872,-500.0,0.00044383,120]
[393035145,1762236650881,-500.0,0.00044383,120]
[393035146,1762236650889,-500.0,0.00044383,120]
[393035147,1762236650898,-2012.97,0.00044383,2]
[393035148,1762236650907,-502.43214545,0.00044383,7]
[393035149,1762236650916,-500.0,0.00044383,120]
[393035150,1762236650925,-500.0,0.00044383,120]
[393035151,1762236650935,-502.77811672,0.00044383,120]
[393035152,1762236650944,-500.0,0.00044383,120]
[393035153,1762236650954,-500.0,0.00044383,120]
[393035154,1762236650963,-500.0,0.00044383,120]
[393035155,1762236650972,-500.0,0.00044383,120]
[393035156,1762236650981,-500.0,0.00044383,120]
[393035157,1762236650990,-500.0,0.00044383,120]
[393035158,1762236650999,-500.0,0.00044383,120]
[393035159,1762236651009,-500.0,0.00044383,120]
[393035160,1762236651019,-500.0,0.00044383,120]
[393035161,1762236651028,-500.0,0.00044383,14]
[393035162,1762236651039,-500.0,0.00044383,120]
[393035163,1762236651049,-4509.81,0.00044383,15]
[393035164,1762236651058,-500.0,0.00044383,120]
[393035165,1762236651067,-500.0,0.00044383,120]
[393035166,1762236651076,-500.0,0.00044383,120]
[393035167,1762236651085,-500.0,0.00044383,120]
[393035168,1762236651095,-500.0,0.00044383,120]
[393035169,1762236651104,-503.33520549,0.00044383,120]
[393035170,1762236651113,-500.0,0.00044383,120]
[393035171,1762236651123,-449.55441096,0.00044383,120]
[393035172,1762236651132,-504.1159356,0.00044383,120]
[393035173,1762236651141,-503.41412292,0.00044383,120]
[393035174,1762236651150,-472.40898993,0.00044383,120]
[393035175,1762236651159,-500.0,0.00044383,120]
[393035176,1762236651168,-500.0,0.00044383,120]
[393035177,1762236651177,-500.0,0.00044383,120]
[393035178,1762236651186,-1000.0,0.00044383,2]
[393035179,1762236651196,-500.0,0.00044383,120]
[393035180,1762236651205,-500.0,0.00044383,120]
[393035181,1762236651214,-500.0,0.00044383,120]
[393035182,1762236651223,-548.45256051,0.00044383,120]
[393035183,1762236651233,-500.0,0.00044383,120]
[393035184,1762236651242,-505.52638876,0.00044383,120]
[393035185,1762236651251,-503.65772169,0.00044383,120]
[393035186,1762236651260,-500.0,0.00044383,120]
[393035187,1762236651269,-503.84777566,0.00044383,120]
[393035188,1762236651278,-500.0,0.00044383,120]
[393035189,1762236651290,-500.0,0.00044383,120]
[393035190,1762236651303,-500.0,0.00044383,120]
[393035191,1762236651312,-500.0,0.00044383,120]
[393035192,1762236651321,-500.0,0.00044383,120]
[393035193,1762236651330,-500.0,0.00044383,120]
[393035194,1762236651339,-500.0,0.00044383,120]
[393035195,1762236651350,-500.0,0.00044383,120]
[393035196,1762236651360,-500.0,0.00044383,120]
[393035197,1762236651369,-500.0,0.00044383,120]
[393035198,1762236651381,-500.0,0.00044383,120]
[393035199,1762236651391,-225.41340643,0.00044383,120]
[393035200,1762236651400,-500.0,0.00044383,120]
[393035201,1762236651410,-501.55209613,0.00044383,120]
[393035202,1762236651419,-503.72165778,0.00044383,120]
[393035203,1762236651429,-500.0,0.00044383,120]
[393035204,1762236651439,-500.0,0.00044383,120]
[393035205,1762236651448,-500.0,0.00044383,120]
[393035206,1762236651457,-500.0,0.00044383,120]
[393035207,1762236651466,-500.0,0.00044383,10]
[393035208,1762236651476,-503.01937743,0.00044383,120]
[393035209,1762236651486,-500.0,0.00044383,120]
[393035210,1762236651495,-500.0,0.00044383,120]
[393035211,1762236651504,-579.28582458,0.00044383,120]
[393035212,1762236651513,-500.0,0.00044383,30]
[393035213,1762236651523,-500.0,0.00044383,120]
[393035214,1762236651533,-500.0,0.00044383,120]
[393035215,1762236651544,-500.0,0.00044383,120]
[393035216,1762236651553,-500.0,0.00044383,120]
[393035217,1762236651562,-500.0,0.00044383,120]
[393035218,1762236651571,-544.32299891,0.00044383,120]
[393035219,1762236651580,-500.0,0.00044383,120]
[393035220,1762236651590,-514.90319422,0.00044383,120]
[393035221,1762236651599,-502.83252878,0.00044383,120]
[393035222,1762236651608,-500.0,0.00044383,120]
[393035223,1762236651617,-500.0,0.00044383,120]
[393035224,1762236651626,-500.0,0.00044383,120]
[393035225,1762236651635,-500.0,0.00044383,120]
[393035226,1762236651644,-500.0,0.00044383,120]
[393035227,1762236651653,-505.39561753,0.00044383,120]
[393035228,1762236651666,-500.0,0.00044383,120]
[393035229,1762236651675,-500.0,0.00044383,120]
[393035230,1762236651684,-500.0,0.00044383,120]
[393035231,1762236651694,-502.89863986,0.00044383,120]
[393035232,1762236651703,-500.0,0.00044383,120]
[393035233,1762236651712,-500.0,0.00044383,120]
[393035234,1762236651721,-502.81983826,0.00044383,120]
[393035235,1762236651730,-505.37790618,0.00044383,120]
[393035236,1762236651739,-500.0,0.00044383,120]
[393035237,1762236651748,-500.0,0.00044383,120]
[393035238,1762236651758,-500.0,0.00044383,120]
[393035239,1762236651767,-500.0,0.00044383,120]
[393035240,1762236651776,-500.0,0.00044383,120]
[393035241,1762236651786,-500.0,0.00044383,120]
[393035242,1762236651796,-500.0,0.00044383,120]
[393035243,1762236651857,-500.0,0.00044383,2]
[393035244,1762236651870,-504.31633065,0.00044383,120]
[393035245,1762236651880,-500.0,0.00044383,120]
[393035246,1762236651889,-503.78500664,0.00044383,120]
[393035247,1762236651898,-500.0,0.00044383,120]
[393035248,1762236651907,-503.9318548,0.00044383,120]
[393035249,1762236651916,-500.0,0.00044383,120]
[393035250,1762236651925,-500.0,0.00044383,120]
[393035251,1762236651934,-500.0,0.00044383,120]
[393035252,1762236651944,-610.55748217,0.00044383,120]
[393035253,1762236651953,-500.0,0.00044383,120]
[393035254,1762236651962,-504.19331313,0.00044383,120]
[393035255,1762236651972,-2979.34,0.00044383,45]
[393035256,1762236651981,-500.0,0.00044383,120]
[393035257,1762236651990,-503.76620093,0.00044383,120]
[393035258,1762236651999,-502.46251431,0.00044383,120]
[393035259,1762236652008,-503.78601517,0.00044383,120]
[393035260,1762236652017,-500.0,0.00044383,120]
[393035261,1762236652026,-520.29715478,0.00044383,120]
[393035262,1762236652036,-500.0,0.00044383,120]
[393035263,1762236652044,-507.22827475,0.00044383,120]
[393035264,1762236652054,-504.97281637,0.00044383,120]
[393035265,1762236652063,-509.66831988,0.00044383,120]
[393035266,1762236652073,-505.62352166,0.00044383,120]
[393035267,1762236652082,-500.0,0.00044383,120]
[393035268,1762236652093,-500.0,0.00044383,120]
[393035269,1762236652104,-444.95046621,0.00044383,120]
[393035270,1762236652113,-509.14914613,0.00044383,120]
[393035271,1762236652123,-503.30074745,0.00044383,120]
[393035272,1762236652132,-504.99148718,0.00044383,120]
[393035273,1762236652141,-500.0,0.00044383,120]
[393035274,1762236652150,-507.20624901,0.00044383,120]
[393035275,1762236652159,-500.0,0.00044383,120]
[393035276,1762236652169,-504.10954713,0.00044383,120]
[393035277,1762236652178,-500.0,0.00044383,120]
[393035278,1762236652187,-534.4902707,0.00044383,120]
[393035279,1762236652196,-500.0,0.00044383,120]
[393035280,1762236652205,-505.7517269,0.00044383,120]
[393035281,1762236652214,-403.16584393,0.00044383,120]
[393035282,1762236652232,-96.83415607,0.00044383,120]
[393035283,1762236652241,-502.96926225,0.00044383,120]
[393035284,1762236652250,-500.0,0.00044383,120]
[393035285,1762236652259,-500.0,0.00044383,120]
[393035286,1762236652269,-500.0,0.00044383,120]
[393035287,1762236652278,-504.49170153,0.00044383,120]
[393035288,1762236652288,-306.60672081,0.00044383,120]
[393035289,1762236652301,-500.0,0.00044383,120]
[393035290,1762236652310,-506.34750945,0.00044383,120]
[393035291,1762236652319,-352.6048376,0.00044383,120]
[393035292,1762236652327,-500.0,0.00044383,120]
[393035293,1762236652336,-500.0,0.00044383,120]
[393035294,1762236652346,-500.0,0.00044383,120]
[393035295,1762236652356,-500.0,0.00044383,120]
[393035296,1762236652365,-68.63185485,0.00044383,120]
[393035297,1762236652379,-431.36814515,0.00044383,120]
[393035298,1762236652388,-559.47,0.00044383,120]
[393035299,1762236652397,-3364.51,0.00044383,120]
[393035300,1762236652407,-500.0,0.00044383,120]
[393035301,1762236652416,-500.0,0.00044383,120]
[393035302,1762236652425,-500.0,0.00044383,120]
[393035303,1762236652434,-500.0,0.00044383,120]
[393035304,1762236652443,-500.0,0.00044383,120]
[393035305,1762236652452,-500.0,0.00044383,120]
[393035306,1762236652461,-500.0,0.00044383,120]
[393035307,1762236652470,-500.0,0.00044383,120]
[393035308,1762236652479,-500.0,0.00044383,120]
[393035309,1762236652488,-503.15190927,0.00044383,120]
[393035310,1762236652498,-500.0,0.00044383,60]
[393035311,1762236652508,-508.53235041,0.00044383,120]
[393035312,1762236652518,-500.0,0.00044383,120]
[393035313,1762236652527,-500.0,0.00044383,120]
[393035314,1762236652536,-510.87302001,0.00044383,120]
[393035315,1762236652546,-500.0,0.00044383,120]
[393035316,1762236652555,-500.0,0.00044383,120]
[393035317,1762236652564,-500.0,0.00044383,120]
[393035318,1762236652574,-2331.85,0.00044383,120]
[393035319,1762236652583,-500.0,0.00044383,120]
[393035320,1762236652592,-506.06943935,0.00044383,120]
[393035321,1762236652601,-503.06803555,0.00044383,120]
[393035322,1762236652611,-500.0,0.00044383,120]
[393035323,1762236652620,-500.0,0.00044383,120]
[393035324,1762236652629,-500.0,0.00044383,120]
[393035325,1762236652638,-500.0,0.00044383,120]
[393035326,1762236652647,-500.0,0.00044383,120]
[393035327,1762236652656,-500.0,0.00044383,120]
[393035328,1762236652665,-513.09592073,0.00044383,120]
[393035329,1762236652674,-500.0,0.00044383,120]
[393035330,1762236652683,-500.0,0.00044383,120]
[393035331,1762236652692,-500.0,0.00044383,120]
[393035332,1762236652701,-500.0,0.00044383,21]
[393035333,1762236652711,-500.0,0.00044383,120]
[393035334,1762236652719,-505.71391361,0.00044383,120]
[393035335,1762236652729,-500.0,0.00044383,3]
[393035336,1762236652738,-517.6608976,0.00044383,120]
[393035337,1762236652747,-500.0,0.00044383,120]
[393035338,1762236652756,-503.12746067,0.00044383,120]
[393035339,1762236652765,-500.0,0.00044383,120]
[393035340,1762236652774,-500.0,0.00044383,120]
[393035341,1762236652785,-500.0,0.00044383,120]
[393035342,1762236652794,-386.22047819,0.00044383,120]
[393035343,1762236652921,-5000.0,0.00024953,3]
[393035344,1762236652931,-500.0,0.00043835,120]
[393035345,1762236652941,-500.0,0.00044109,120]
[393035346,1762236652950,-113.77952181,0.00044383,120]
[393035347,1762236652960,-500.0,0.00044383,120]
[393035348,1762236652969,-500.0,0.00044383,120]
[393035349,1762236652978,-500.0,0.00044383,120]
[393035350,1762236652988,-500.0,0.00044383,120]
[393035351,1762236652997,-500.0,0.00044383,120]
[393035352,1762236653006,-505.41797465,0.00044383,120]
[393035353,1762236653015,-500.0,0.00044383,120]
[393035354,1762236653024,-500.0,0.00044383,120]
[393035355,1762236653035,-320.80250354,0.00044383,120]
[393035356,1762236653153,-536.68,0.00044099,10]
[393035357,1762236653165,-189.35119674,0.00044383,120]
[393035358,1762236653175,-503.89764393,0.00044383,120]
[393035359,1762236653184,-500.0,0.00044383,120]
[393035360,1762236653194,-500.0,0.00044383,120]
[393035361,1762236653204,-500.0,0.00044383,120]
[393035362,1762236653214,-500.0,0.00044383,120]
[393035363,1762236653223,-500.0,0.00044383,120]
[393035364,1762236653232,-500.0,0.00044383,120]
[393035365,1762236653242,-501.99058739,0.00044383,120]
[393035366,1762236653251,-500.0,0.00044383,60]
[393035367,1762236653261,-502.95680652,0.00044383,120]
[393035368,1762236653270,-518.4258475,0.00044383,30]
[393035369,1762236653280,-500.0,0.00044383,120]
[393035370,1762236653291,-500.0,0.00044383,120]
[393035371,1762236653305,-504.65423697,0.00044383,120]
[393035372,1762236653315,-500.0,0.00044383,120]
[393035373,1762236653324,-500.0,0.00044383,120]
[393035374,1762236653334,-504.16669912,0.00044383,120]
[393035375,1762236653346,-500.0,0.00044383,120]
[393035376,1762236653355,-502.96705272,0.00044383,120]
[393035377,1762236653365,-500.0,0.00044383,120]
[393035378,1762236653375,-500.0,0.00044383,120]
[393035379,1762236653384,-557.55052464,0.00044383,120]
[393035380,1762236653393,-505.07389419,0.00044383,120]
[393035381,1762236653403,-500.0,0.00044383,120]
[393035382,1762236653412,-500.0,0.00044383,120]
[393035383,1762236653421,-500.0,0.00044383,120]
[393035384,1762236653431,-503.77948703,0.00044383,7]
[393035385,1762236653440,-500.0,0.00044383,120]
[393035386,1762236653449,-506.05241246,0.00044383,120]
[393035387,1762236653458,-508.09788273,0.00044383,120]
[393035388,1762236653468,-500.0,0.00044383,120]
[393035389,1762236653478,-505.66495155,0.00044383,120]
[393035390,1762236653488,-500.0,0.00044383,120]
[393035391,1762236653498,-505.6939723,0.00044383,120]
[393035392,1762236653509,-508.35616799,0.00044383,120]
[393035393,1762236653519,-500.0,0.00044383,120]
[393035394,1762236653529,-500.0,0.00044383,120]
[393035395,1762236653541,-628.36873608,0.00044383,120]
[393035396,1762236653551,-500.0,0.00044383,120]
[393035397,1762236653562,-503.06770395,0.00044383,120]
[393035398,1762236653572,-500.0,0.00044383,120]
[393035399,1762236653581,-515.58675801,0.00044383,120]
[393035400,1762236653591,-500.0,0.00044383,120]
[393035401,1762236653600,-506.90931176,0.00044383,120]
[393035402,1762236653609,-500.0,0.00044383,120]
[393035403,1762236653619,-503.43200218,0.00044383,120]
[393035404,1762236653628,-500.0,0.00044383,120]
[393035405,1762236653637,-500.0,0.00044383,120]
[393035406,1762236653646,-500.0,0.00044383,120]
[393035407,1762236653656,-500.0,0.00044383,120]
[393035408,1762236653666,-500.0,0.00044383,120]
[393035409,1762236653676,-500.0,0.00044383,120]
[393035410,1762236653686,-500.0,0.00044383,120]
[393035411,1762236653696,-500.0,0.00044383,120]
[393035412,1762236653706,-2020.09,0.00044383,120]
[393035413,1762236653716,-500.0,0.00044383,120]
[393035414,1762236653725,-500.0,0.00044383,120]
[393035415,1762236653734,-500.0,0.00044383,120]
[393035416,1762236653744,-500.0,0.00044383,120]
[393035417,1762236653808,-500.0,0.00044383,120]
[393035418,1762236653818,-571.39920647,0.00044383,120]
[393035419,1762236653828,-509.13427715,0.00044383,120]
[393035420,1762236653838,-500.0,0.00044383,120]
[393035421,1762236653848,-500.0,0.00044383,120]
[393035422,1762236653858,-503.15859866,0.00044383,120]
[393035423,1762236653868,-500.0,0.00044383,120]
[393035424,1762236653878,-507.46456772,0.00044383,120]
[393035425,1762236653887,-500.0,0.00044383,120]
[393035426,1762236653897,-500.0,0.00044383,120]
[393035427,1762236653906,-500.0,0.00044383,120]
[393035428,1762236653916,-500.0,0.00044383,120]
[393035429,1762236653925,-500.0,0.00044383,120]
[393035430,1762236653935,-500.0,0.00044383,120]
[393035431,1762236653944,-505.47218267,0.00044383,120]
[393035432,1762236653954,-500.0,0.00044383,120]